bitfinex/quotes_ETHUSD_20250508
["timestamp","ask_amount","ask_price","bid_price","bid_amount"]
[1746718044538,4.93594916,2026.0,2025.5,4.9368388]
[1746718044742,4.9372052,2025.5,2024.1,18.77213941]
[1746718044949,6.98431336,2025.9,2024.6,0.827]
[1746718045273,5.48736064,2025.4,2024.6,4.93907516]
[1746718045577,5.72158742,2025.0,2024.4,4.93963269]
[1746718045873,0.7832,2025.0,2024.7,4.9389977]
[1746718046075,0.55,2024.9,2024.2,4.94006487]
[1746718046377,0.55,2024.7,2024.2,0.04939505]
[1746718046538,5.48924725,2024.6,2023.7,4.94127823]
[1746718046737,0.55,2024.0,2023.4,4.94204993]
[1746718046937,0.8083,2024.5,2023.5,0.04941063]
[1746718047171,0.55,2024.2,2023.5,0.04941063]
[1746718047372,0.8083,2024.5,2023.6,4.94168808]
[1746718047573,0.55,2024.4,2023.2,4.94266508]
[1746718047734,0.55,2024.4,2024.0,4.94059257]
[1746718047935,0.8083,2024.5,2023.4,4.94217653]
[1746718048139,0.55,2024.4,2023.3,0.98855745]
[1746718048373,0.8083,2024.5,2023.5,4.94193229]
[1746718048697,0.8083,2024.5,2024.4,4.93973523]
[1746718049179,0.8239,2024.9,2024.5,4.93942851]
[1746718049379,0.8239,2024.9,2024.7,4.93899772]
[1746718049680,6.54992038,2025.4,2023.9,0.8096]
[1746718049681,0.7828,2025.4,2025.0,4.93825817]
[1746718049847,4.93778138,2025.3,2024.8,4.9386405]
[1746718050057,7.33246103,2025.4,2024.1,0.04938658]
[1746718050389,4.93812574,2025.1,2024.6,4.9390766]
[1746718050594,4.93812574,2025.1,2024.1,0.8746697]
[1746718050595,4.93865256,2024.9,2024.4,4.93957532]
[1746718050798,0.55,2024.8,2024.1,4.9404572]
[1746718051087,14.78213522,2025.4,2024.8,4.93857512]
[1746718051088,4.93767178,2025.3,2024.8,4.93857512]
[1746718051287,4.93803772,2025.1,2024.7,4.93898864]
[1746718051493,0.55,2025.0,2024.6,4.93906348]
[1746718051985,4.93803772,2025.1,2024.6,4.93911379]
[1746718052160,4.93803772,2025.1,2023.9,0.8096]
[1746718052161,0.55,2025.2,2023.9,0.8096]
[1746718052351,0.55,2024.9,2024.0,4.94071146]
[1746718052556,0.55,2025.1,2024.2,4.94022329]
[1746718052756,0.55,2025.1,2024.7,4.9389414]
[1746718052962,5.48805462,2025.1,2024.7,4.93898464]
[1746718053194,4.9390522,2024.7,2023.9,5.51587382]
[1746718053351,0.815,2024.7,2024.4,4.93950689]
[1746718053715,0.815,2024.7,2024.1,4.94030603]
[1746718053885,0.815,2024.7,2024.0,0.55158738]
[1746718054092,5.48925957,2024.6,2023.9,4.94087912]
[1746718054391,0.55,2024.6,2024.2,4.94008838]
[1746718054563,0.55,2024.6,2024.2,4.94005522]
[1746718054887,0.815,2024.7,2024.3,4.9397879]
[1746718055090,0.815,2024.7,2024.2,4.94015576]
[1746718055268,0.815,2024.7,2024.3,9.87955764]
[1746718055463,18.344,2024.9,2024.7,4.93878081]
[1746718055679,0.8064,2025.1,2024.4,0.04939757]
[1746718055869,0.8064,2025.3,2025.1,4.93799606]
[1746718056065,0.8064,2025.3,2024.2,4.94022329]
[1746718056389,5.74394725,2025.3,2024.3,0.34485691]
[1746718056601,4.93805305,2025.1,2024.3,0.89982498]
[1746718056801,0.55,2025.0,2024.4,0.04938872]
[1746718056984,0.8064,2025.3,2024.3,4.93997925]
[1746718057291,18.629,2025.7,2024.9,0.7922]
[1746718057501,18.629,2025.7,2025.1,4.93784059]
[1746718057502,23.5656707,2025.7,2025.1,4.93784059]
[1746718057709,4.93776109,2025.3,2024.9,4.93850548]
[1746718058002,4.93776109,2025.3,2024.8,4.93863562]
[1746718058172,4.93775701,2025.3,2024.7,4.93888152]
[1746718058377,0.55,2025.3,2024.7,4.98826366]
[1746718058602,0.55,2025.3,2024.7,4.93888508]
[1746718058801,4.93744052,2025.4,2024.9,4.93835813]
[1746718059003,18.629,2025.7,2025.3,4.9372984]
[1746718059213,0.7877,2026.1,2025.4,0.04937291]
[1746718059414,0.7877,2026.1,2025.0,0.04936217]
[1746718059584,0.2937,2026.1,2024.9,0.7725]
[1746718059778,0.2937,2026.1,2026.0,4.93583415]
[1746718059980,17.796,2026.6,2026.5,4.93461633]
[1746718060308,4.93352001,2027.0,2025.5,4.93687996]
[1746718060309,5.44677284,2028.0,2026.4,0.04934689]
[1746718060479,0.15971921,2027.8,2026.7,4.93398485]
[1746718060685,4.93286075,2027.3,2026.8,4.93372534]
[1746718060891,4.93233381,2027.5,2026.9,4.93349616]
[1746718061069,4.96794506,2027.7,2027.0,4.93335745]
[1746718061405,4.93253145,2027.4,2026.8,4.98309319]
[1746718061609,4.93253145,2027.4,2026.9,4.9336068]
[1746718061774,4.93266997,2027.3,2026.9,4.9336068]
[1746718061976,5.30305365,2027.6,2027.0,4.93320359]
[1746718062193,6.08214469,2027.7,2026.9,4.93353094]
[1746718062194,4.93244741,2027.4,2026.9,4.93353094]
[1746718062399,4.93259508,2027.4,2026.9,4.93363971]
[1746718062595,4.93248444,2027.4,2026.9,4.93346922]
[1746718062904,4.93339484,2027.1,2026.5,4.93448132]
[1746718063103,0.90134844,2027.4,2026.2,4.98468423]
[1746718063278,0.55,2027.2,2026.9,4.93354095]
[1746718063483,0.55,2027.3,2026.9,4.93354095]
[1746718063678,0.4081,2027.4,2026.7,4.93404661]
[1746718063901,5.34065792,2027.4,2026.8,0.04933432]
[1746718064078,4.93315575,2027.1,2026.2,4.93534695]
[1746718064271,5.48403506,2026.8,2026.3,4.93504201]
[1746718064474,0.55,2026.6,2025.9,4.93607779]
[1746718064670,0.55,2026.2,2025.5,4.93705257]
[1746718064907,0.4081,2026.6,2025.8,4.93621352]
[1746718065124,5.48505738,2026.4,2025.8,4.9360907]
[1746718065419,0.4081,2026.6,2025.9,4.98542305]
[1746718065584,4.9307995,2028.1,2026.2,4.93534695]
[1746718065585,1.9362226,2027.7,2026.2,4.93534695]
[1746718065781,4.93206422,2027.6,2027.1,4.9330038]
[1746718066216,4.93222451,2027.5,2027.1,4.93313739]
[1746718066417,0.4441172,2027.7,2026.9,0.04932826]
[1746718066623,4.93256728,2027.4,2026.9,4.93347264]
[1746718066783,4.93231931,2027.5,2026.9,4.93342528]
[1746718066988,4.93231931,2027.5,2027.0,4.93337391]
[1746718066989,0.55,2027.4,2027.0,4.93337391]
[1746718067389,0.4441172,2027.7,2027.0,0.0493326]
[1746718067686,0.0360172,2027.7,2027.5,4.93206292]
[1746718067918,0.0360172,2027.7,2027.4,4.93229182]
[1746718068088,0.0360172,2027.7,2027.5,4.93196574]
[1746718068293,0.0360172,2027.7,2027.6,4.93193923]
[1746718068523,0.0360172,2027.7,2027.3,0.04931942]
[1746718068689,0.0360172,2027.7,2027.1,4.98247645]
[1746718068893,0.0360172,2027.7,2027.5,4.93211721]
[1746718069088,0.0360172,2027.7,2027.0,4.93339911]
[1746718069332,0.0360172,2027.7,2027.4,4.9322617]
[1746718069628,0.0360172,2027.7,2027.4,4.93229442]
[1746718069926,0.0360172,2027.7,2027.0,4.93339911]
[1746718069927,0.0360172,2027.7,2027.2,4.9328291]
[1746718070229,4.9677558,2027.7,2027.2,4.93276411]
[1746718070410,0.0360172,2027.7,2027.3,4.98194466]
[1746718070616,0.0360172,2027.7,2027.2,4.93276358]
[1746718070812,0.0360172,2027.7,2027.4,4.92723798]
[1746718071119,0.0360172,2027.7,2027.3,4.93256464]
[1746718071323,1.02589235,2027.7,2026.3,0.8235]
[1746718071524,0.55,2027.4,2026.3,0.8235]
[1746718071695,0.55,2027.4,2026.0,5.29974345]
[1746718071696,4.93354273,2027.0,2026.5,4.93451276]
[1746718071895,0.55,2027.4,2026.6,4.93436191]
[1746718072097,4.93342466,2027.0,2026.6,0.04933258]
[1746718072299,4.93342466,2027.0,2026.2,4.93521725]
[1746718072300,4.93398705,2026.8,2026.2,4.93521725]
[1746718072537,0.55,2026.6,2025.9,0.8235]
[1746718072740,4.93461633,2026.5,2025.5,0.7874]
[1746718072947,4.93586511,2026.0,2025.6,4.93671401]
[1746718073141,4.93586511,2026.0,2025.0,4.93824963]
[1746718073142,4.9367807,2025.7,2025.0,4.93824963]
[1746718073438,0.55,2025.8,2025.3,8.09739569]
[1746718073602,0.55,2025.8,2025.4,4.93717887]
[1746718073797,5.48636752,2025.8,2025.3,3.15996769]
[1746718074026,0.4081,2025.9,2025.3,9.04110039]
[1746718074232,0.55,2025.8,2025.4,4.93729184]
[1746718074414,0.55,2025.8,2025.5,4.93688777]
[1746718074926,5.48633102,2025.8,2025.3,9.04101606]
[1746718075130,0.55,2025.6,2025.3,4.10358881]
[1746718075512,4.93644589,2025.8,2025.4,4.93717559]
[1746718075513,0.55,2025.8,2025.4,4.93717559]
[1746718075738,0.4081,2025.9,2025.6,4.93661355]
[1746718075938,5.34418002,2025.9,2025.5,4.93688642]
[1746718076118,0.4081,2025.9,2025.7,4.93634765]
[1746718076318,0.4081,2026.3,2026.0,4.93567744]
[1746718076612,4.93474972,2026.5,2025.4,0.8219]
[1746718076613,0.4081,2026.7,2025.4,0.8219]
[1746718076813,0.4081,2026.7,2026.3,4.93506322]
[1746718077124,0.4081,2026.7,2025.5,0.54189771]
[1746718077125,4.93438573,2026.6,2025.8,4.93632145]
[1746718077310,4.93451531,2026.6,2026.1,4.93537132]
[1746718077517,4.93451531,2026.6,2026.0,4.93572604]
[1746718077518,0.4081,2026.7,2026.2,4.93524692]
[1746718077703,4.9343747,2026.6,2026.2,4.93533501]
[1746718077907,4.9343747,2026.6,2026.1,4.93547339]
[1746718078146,0.4081,2026.7,2026.2,4.93531103]
[1746718078347,0.4081,2026.7,2025.8,4.93629468]
[1746718078551,0.4081,2026.7,2026.3,4.93496497]
[1746718078710,5.48449255,2026.6,2026.1,4.93544919]
[1746718078904,0.4081,2026.7,2026.2,0.04935124]
[1746718079118,0.4081,2026.7,2026.4,4.9347255]
[1746718079450,0.4081,2026.7,2025.5,0.78664972]
[1746718079603,0.55,2026.5,2025.6,4.98616035]
[1746718079803,0.4081,2026.7,2025.8,4.93632145]
[1746718080055,17.781,2026.9,2026.6,4.93437284]
[1746718080359,22.71466018,2026.9,2026.4,4.93474152]
[1746718080519,17.781,2026.9,2026.3,4.93500292]
[1746718080720,17.781,2026.9,2026.5,4.93440687]
[1746718080952,4.96795605,2027.7,2026.6,4.93437284]
[1746718080953,0.0360172,2027.7,2026.6,4.93437284]
[1746718081167,0.0360172,2027.7,2026.5,0.7624]
[1746718081368,4.93283704,2027.3,2026.9,4.93359719]
[1746718081648,4.93319787,2027.1,2026.7,4.93394251]
[1746718081957,5.48362164,2027.0,2026.5,4.93458319]
[1746718082252,5.48346383,2027.0,2026.4,4.93471449]
[1746718082435,0.55,2026.8,2026.6,4.93427295]
[1746718082629,4.93303428,2027.2,2026.8,4.93384849]
[1746718082826,0.4081,2027.3,2026.6,4.93413944]
[1746718083028,4.93341126,2027.0,2026.4,4.93476692]
[1746718083228,0.55,2026.8,2026.5,4.93454609]
[1746718083619,0.55,2026.7,2026.0,4.93580174]
[1746718083963,0.55,2026.8,2026.5,4.93438866]
[1746718084345,5.87484146,2027.3,2026.0,4.93580174]
[1746718084346,0.55,2027.1,2026.0,4.93580174]
[1746718084514,0.94215626,2027.3,2026.1,0.49358017]
[1746718084515,0.55,2027.0,2026.1,0.49358017]
[1746718084717,5.87487061,2027.3,2026.5,4.93449904]
[1746718084718,0.4081,2027.3,2026.5,4.93449904]
[1746718084929,0.4081,2027.3,2027.2,4.93291239]
[1746718085151,0.4081,2027.6,2027.2,4.9820957]
[1746718085358,0.4081,2027.6,2027.2,4.9328019]
[1746718085779,0.4081,2027.6,2026.9,4.93358075]
[1746718085946,0.4081,2027.6,2027.5,4.93218249]
[1746718086291,0.0360172,2027.7,2027.6,4.93193923]
[1746718086470,0.0360172,2027.7,2027.6,4.98125084]
[1746718086623,0.0360172,2027.7,2027.3,0.8058]
[1746718086817,0.0360172,2027.7,2027.5,4.93203323]
[1746718087024,0.0360172,2027.7,2027.0,4.9333974]
[1746718087261,4.93204529,2027.6,2027.1,4.93297555]
[1746718087573,4.93267911,2027.3,2026.5,5.72440989]
[1746718087759,0.53761625,2027.6,2026.6,4.98348568]
[1746718087930,0.55,2027.5,2026.6,0.29507913]
[1746718088254,5.48278045,2027.3,2026.7,4.93397709]
[1746718088455,0.55,2027.2,2026.8,4.9337603]
[1746718088654,1.09828851,2027.2,2026.4,0.26377459]
[1746718088842,4.93290234,2027.3,2026.7,4.93399477]
[1746718089048,0.55,2027.5,2026.4,0.26377459]
[1746718089361,0.55,2027.2,2026.9,4.93362436]
[1746718089566,3.53761625,2027.6,2027.0,4.93319478]
[1746718089567,0.55,2027.4,2027.0,4.93319478]
[1746718089866,0.55,2027.2,2026.8,4.93364627]
[1746718090155,0.53761625,2027.6,2026.8,4.93382274]
[1746718090368,18.2241172,2027.7,2026.8,6.2589795]
[1746718090527,18.2241172,2027.7,2026.9,0.34515632]
[1746718090856,17.8160172,2027.7,2026.9,0.29582864]
[1746718091065,17.8160172,2027.7,2027.6,4.93193923]
[1746718091273,0.0360172,2027.7,2027.6,4.93193923]
[1746718091481,0.14928565,2027.7,2027.6,6.46088312]
[1746718091684,0.0360172,2027.7,2027.6,5.22776787]
[1746718092342,0.0360172,2027.7,2027.6,5.27707989]
[1746718092637,0.0360172,2027.7,2027.6,6.43359833]
[1746718092869,0.0360172,2027.7,2027.6,7.13652877]
[1746718093034,0.0360172,2027.7,2027.6,6.76070218]
[1746718093235,0.0360172,2027.7,2027.6,0.99875908]
[1746718093545,0.0360172,2027.7,2027.6,0.70293044]
[1746718093876,0.0360172,2027.7,2027.6,5.63486967]
[1746718094191,0.0360172,2027.7,2027.6,5.24483715]
[1746718094388,0.0360172,2027.7,2027.6,6.49217808]
[1746718094594,0.0360172,2027.7,2027.6,6.44287069]
[1746718094893,0.0360172,2027.7,2027.6,4.93193923]
[1746718095190,0.0360172,2027.7,2027.6,5.2271059]
[1746718095556,0.0360172,2027.7,2027.6,0.29516667]
[1746718095760,0.0360172,2027.7,2027.6,5.2271059]
[1746718095953,0.14660262,2027.7,2027.6,5.27642062]
[1746718096263,0.0360172,2027.7,2027.6,6.44603036]
[1746718096461,0.0360172,2027.7,2027.6,4.93193923]
[1746718096667,0.0360172,2027.7,2027.6,4.98124814]
[1746718096916,0.0360172,2027.7,2027.6,5.74453923]
[1746718097100,0.0360172,2027.7,2027.6,4.93193923]
[1746718097596,0.0360172,2027.7,2027.4,4.93241859]
[1746718097597,0.0360172,2027.7,2027.3,4.93266906]
[1746718097793,0.0360172,2027.7,2027.6,4.93193923]
[1746718097967,0.0360172,2027.7,2027.6,4.98125475]
[1746718098155,0.0360172,2027.7,2027.6,4.93193923]
[1746718098357,0.0360172,2027.7,2027.6,4.98125105]
[1746718098556,0.0360172,2027.7,2027.6,4.93193923]
[1746718099518,0.0360172,2027.7,2027.2,0.8126]
[1746718099682,0.0360172,2027.7,2027.4,4.93224873]
[1746718099888,0.0360172,2027.7,2027.5,4.93207921]
[1746718100195,0.0360172,2027.7,2027.6,4.93193923]
[1746718100798,0.0360172,2027.7,2027.6,4.98124977]
[1746718101124,0.0360172,2027.7,2027.6,7.57437787]
[1746718101618,0.0360172,2027.7,2027.6,7.83710754]
[1746718101822,0.0360172,2027.7,2027.6,7.83710515]
[1746718102028,0.0360172,2027.7,2027.6,6.30322735]
[1746718102686,0.0360172,2027.7,2027.6,6.35253051]
[1746718103114,0.4081,2028.8,2028.6,4.92931793]
[1746718103317,11.734,2029.3,2028.4,4.92999408]
[1746718103502,11.734,2029.3,2028.4,1.06573991]
[1746718103712,4.41851464,2029.1,2028.3,0.7972]
[1746718103899,4.41851464,2028.8,2028.5,4.92972888]
[1746718104098,4.41851464,2028.8,2027.8,1.11805845]
[1746718104099,0.9941,2028.6,2027.8,1.11805845]
[1746718104328,9.3483002,2028.5,2028.0,4.93072494]
[1746718104625,0.55,2028.4,2027.5,4.93218249]
[1746718104831,16.15151464,2028.5,2027.6,0.69498594]
[1746718104999,16.15151464,2028.5,2027.8,4.9314528]
[1746718105200,16.66283897,2028.5,2028.0,4.93082069]
[1746718105511,11.733,2028.5,2028.4,4.92999408]
[1746718105690,11.733,2028.5,2027.3,4.93253619]
[1746718105892,0.55,2028.2,2027.6,4.93175275]
[1746718106126,12.95071,2028.5,2027.9,4.93120134]
[1746718106426,0.55,2028.4,2027.5,0.04930642]
[1746718106628,0.55,2028.4,2027.6,4.93193923]
[1746718106835,0.55,2028.4,2027.4,5.30106773]
[1746718106836,0.55,2028.4,2028.1,4.93056196]
[1746718107035,11.733,2028.5,2027.9,4.98051384]
[1746718107199,11.733,2028.5,2028.1,4.93072333]
[1746718107401,11.733,2028.5,2028.4,4.92999408]
[1746718108011,0.4441,2029.0,2028.6,4.92942764]
[1746718108214,11.438,2029.1,2028.9,4.92865566]
[1746718108416,11.438,2029.1,2028.0,4.93095074]
[1746718108417,4.92922508,2028.8,2027.7,4.93151725]
[1746718108602,11.438,2029.1,2028.4,4.92990223]
[1746718108603,4.41851464,2028.9,2028.4,4.92990223]
[1746718108803,4.92952248,2028.6,2028.1,4.93060596]
[1746718109017,0.4441,2028.7,2027.9,4.93120962]
[1746718109223,0.4441,2028.7,2028.0,1.11466184]
[1746718109423,11.8821,2029.1,2028.7,4.92911331]
[1746718109662,11.8821,2029.1,2028.8,4.92884246]
[1746718109858,11.8821,2029.1,2029.0,4.92853622]
[1746718110019,11.438,2029.1,2029.0,4.92853622]
[1746718110462,11.438,2029.1,2028.8,4.92888768]
[1746718110656,11.54973671,2029.1,2028.9,4.92865797]
[1746718110853,4.92889114,2028.9,2028.5,4.92963143]
[1746718111057,5.47914707,2028.8,2028.4,4.92976819]
[1746718111258,0.9941,2028.8,2028.5,4.92962989]
[1746718111431,4.92944484,2028.7,2028.0,1.06536371]
[1746718111636,11.8821,2029.1,2028.8,4.92891656]
[1746718111847,11.8821,2029.1,2028.3,4.93023714]
[1746718111848,16.81048062,2029.1,2028.3,4.93023714]
[1746718112155,4.92893669,2028.9,2028.5,4.92966007]
[1746718112456,4.92893669,2028.9,2028.5,4.92973009]
[1746718112457,4.92893648,2028.9,2028.5,4.92973009]
[1746718112657,9.34716003,2029.0,2028.4,0.29478091]
[1746718112866,4.41851464,2029.0,2028.5,4.92964913]
[1746718113155,9.34714097,2029.0,2028.6,4.92940003]
[1746718113461,4.41851464,2029.0,2028.7,4.92910973]
[1746718113650,4.41851464,2029.0,2028.6,4.92941944]
[1746718113843,9.34705384,2029.0,2028.6,4.92940363]
[1746718114075,4.41851464,2029.0,2028.7,4.9291629]
[1746718114249,4.41851464,2029.0,2028.8,4.92897671]
[1746718114451,4.41851464,2029.0,2028.8,4.92899362]
[1746718114685,4.41851464,2029.0,2028.7,4.92916656]
[1746718114985,4.41851464,2029.0,2028.7,4.92908251]
[1746718115211,9.34713903,2029.0,2028.6,4.92935555]
[1746718115494,4.41851464,2029.0,2028.6,4.92935555]
[1746718115651,9.34711292,2029.0,2028.6,4.92935555]
[1746718115851,4.41851464,2029.0,2028.8,4.92898976]
[1746718116051,11.8821,2029.1,2028.9,4.92877914]
[1746718116357,4.41851464,2029.0,2028.0,4.93084612]
[1746718116554,9.34715511,2029.0,2028.6,4.92947711]
[1746718116887,11.8821,2029.1,2029.0,4.92853622]
[1746718116888,11.438,2029.1,2029.0,4.92853622]
[1746718117248,11.438,2029.1,2028.2,4.93048022]
[1746718117456,11.438,2029.1,2028.6,4.92950803]
[1746718117694,11.438,2029.1,2028.9,4.92859672]
[1746718117859,15.85651464,2029.1,2028.7,4.92917238]
[1746718118059,15.85651464,2029.1,2028.4,4.92998504]
[1746718118262,15.85651464,2029.1,2028.4,4.92998912]
[1746718118471,15.85651464,2029.1,2028.9,4.9286749]
[1746718118675,15.85651464,2029.1,2028.7,4.92904863]
[1746718118873,14.85651464,2029.1,2028.8,4.92891169]
[1746718119085,4.92884354,2028.9,2028.5,4.92956512]
[1746718119286,4.93041685,2028.3,2027.9,4.93119485]
[1746718119498,4.41851464,2028.4,2028.0,0.04930436]
[1746718119646,0.4441,2028.8,2028.5,4.92956763]
[1746718119855,0.4441,2028.8,2028.6,4.92938009]
[1746718120082,4.41851464,2029.0,2028.3,0.04929464]
[1746718120279,10.8821,2029.1,2029.0,4.92853622]
[1746718120601,11.2771,2029.4,2029.2,4.92799552]
[1746718120817,11.2771,2029.4,2029.1,4.92818884]
[1746718120966,4.41851464,2029.3,2029.0,0.29569627]
[1746718121165,4.3820241,2029.1,2028.4,4.92987995]
[1746718121372,4.33351464,2028.9,2028.3,4.9301501]
[1746718121571,4.41851464,2028.6,2028.0,4.93073264]
[1746718121781,0.4441,2028.8,2028.5,4.92975104]
[1746718121978,4.41851464,2028.6,2027.9,5.42415413]
[1746718122178,4.41851464,2028.6,2028.3,4.93001261]
[1746718122380,4.41851464,2028.6,2028.1,4.93051678]
[1746718122566,4.41851464,2028.6,2028.0,0.313666]
[1746718122769,10.832,2028.7,2028.1,4.93072333]
[1746718122967,4.41851464,2028.6,2028.1,0.29604599]
[1746718123252,3.0,2028.5,2028.1,5.2267619]
[1746718123453,3.0,2028.2,2028.0,0.44057692]
[1746718123677,0.4441,2028.1,2027.2,4.93276779]
[1746718123956,8.37652576,2027.4,2027.3,0.29280338]
[1746718124192,3.0,2027.4,2027.3,0.29280338]
[1746718124353,3.0,2027.4,2026.8,3.14642982]
[1746718124698,0.4441,2027.6,2027.4,4.93226154]
[1746718124852,0.08340858,2028.0,2027.9,4.93120962]
[1746718125057,10.835,2028.2,2028.1,4.93072333]
[1746718125354,3.0,2028.1,2027.3,4.93266906]
[1746718125560,10.835,2028.2,2028.1,4.93072333]
[1746718125798,10.835,2028.2,2027.9,4.93096727]
[1746718125995,10.835,2028.2,2027.6,4.93193923]
[1746718126153,3.0,2028.1,2027.6,4.93193923]
[1746718126357,3.0,2028.1,2027.8,4.93134984]
[1746718126674,10.835,2028.2,2028.0,4.93096646]
[1746718126875,10.835,2028.2,2028.1,4.93072333]
[1746718127559,0.4441,2029.1,2029.0,4.92853622]
[1746718127753,0.4441,2029.1,2028.7,4.92906272]
[1746718127980,4.41851464,2028.8,2028.7,4.92926504]
[1746718128257,10.552,2029.3,2029.0,4.92853622]
[1746718128461,10.552,2029.3,2028.4,5.68179408]
[1746718128462,4.41851464,2029.1,2028.9,4.92854265]
[1746718128690,4.41851464,2029.1,2029.0,4.92853622]
[1746718129018,4.41851464,2029.1,2028.9,4.92856907]
[1746718129196,4.41851464,2029.1,2028.4,5.68165514]
[1746718129505,3.0,2028.9,2028.8,4.92899631]
[1746718129661,3.0,2028.9,2028.0,4.93095921]
[1746718129662,4.41851464,2028.7,2028.5,4.92964709]
[1746718129859,4.41851464,2028.7,2028.3,0.04929709]
[1746718130068,0.4441,2028.9,2028.3,0.04929709]
[1746718130264,4.41851464,2029.0,2028.8,4.92902208]
[1746718130463,4.41851464,2029.0,2028.8,4.9288838]
[1746718130702,4.41851464,2029.2,2029.1,4.92829333]
[1746718130866,10.552,2029.3,2029.2,4.92805046]
[1746718131593,4.41851464,2029.6,2029.5,4.927322]
[1746718131770,18.2104578,2029.7,2029.6,4.92707922]
[1746718131969,0.4454578,2029.7,2029.6,4.92707922]
[1746718132180,0.4441,2030.1,2029.6,4.92707922]
[1746718132181,5.25392559,2031.4,2031.0,4.92368291]
[1746718132382,4.41851464,2031.3,2031.0,4.92368291]
[1746718132581,5.25392559,2031.4,2031.0,5.67428291]
[1746718132803,5.25392559,2031.4,2031.0,6.00472288]
[1746718133314,5.25392559,2031.4,2031.3,4.92295574]
[1746718133498,0.42072559,2031.4,2031.3,6.73116557]
[1746718133806,2.23913663,2031.6,2031.5,5.74607108]
[1746718133979,8.79725127,2031.8,2031.7,4.92198651]
[1746718134180,8.79725127,2031.8,2031.7,5.69908651]
[1746718134366,8.02015127,2031.8,2031.7,4.92198651]
[1746718134571,3.48236645,2032.0,2031.9,4.92150204]
[1746718134813,6.31076352,2032.2,2032.1,4.92101766]
[1746718134979,6.31076352,2032.2,2032.1,5.72161766]
[1746718135183,6.31076352,2032.2,2032.1,5.77081748]
[1746718135390,7.30940241,2032.8,2032.5,4.9200492]
[1746718135710,6.64517045,2033.0,2032.9,4.91908111]
[1746718135909,5.40717045,2033.0,2032.9,15.46608111]
[1746718136374,5.40717045,2033.0,2032.9,4.91908111]
[1746718136574,5.40717045,2033.0,2032.9,5.28633273]
[1746718137017,5.40717045,2033.0,2032.2,4.92068709]
[1746718137182,5.40717045,2033.0,2032.7,4.9195105]
[1746718137383,5.40717045,2033.0,2032.9,4.91908111]
[1746718137693,5.40717045,2033.0,2031.4,4.92264628]
[1746718137879,6.12444317,2032.9,2031.4,0.37206197]
[1746718138092,6.12444317,2032.9,2030.6,10.639]
[1746718138093,3.0,2032.7,2032.1,3.14642982]
[1746718138408,6.12444317,2032.5,2032.1,3.14642982]
[1746718138610,4.92073368,2032.3,2032.1,3.14642982]
[1746718138820,1.30367337,2032.2,2031.6,4.09035876]
[1746718139051,0.8116,2032.2,2031.6,4.09035876]
[1746718139312,3.0,2032.1,2031.6,4.09035876]
[1746718139508,6.93604317,2032.2,2031.7,0.04921682]
[1746718139819,0.8116,2032.2,2031.7,0.04920796]
[1746718140014,14.04452323,2032.5,2031.2,4.9231981]
[1746718140220,14.04452323,2032.5,2031.1,9.01377458]
[1746718140221,6.12444317,2032.1,2031.1,4.09035876]
[1746718140371,2.45835232,2032.4,2031.1,4.09035876]
[1746718140372,6.12444317,2031.3,2031.1,4.09035876]
[1746718140574,10.538,2031.4,2031.2,4.9724292]
[1746718140810,6.12444317,2031.6,2031.1,4.09035876]
[1746718140979,6.12444317,2031.8,2031.5,4.92246082]
[1746718141184,6.12444317,2031.8,2031.4,4.92271162]
[1746718141375,6.64771038,2031.8,2031.2,9.01352645]
[1746718141575,6.64771038,2031.8,2031.2,4.09035876]
[1746718141576,2.41455848,2031.8,2031.2,4.09035876]
[1746718141771,6.12444317,2031.4,2031.2,4.09035876]
[1746718142021,10.538,2031.3,2030.8,5.03428771]
[1746718142187,6.12444317,2031.0,2030.8,5.03428771]
[1746718142923,6.12444317,2031.0,2030.0,7.86607455]
[1746718142924,3.0,2030.9,2030.2,5.03428771]
[1746718143072,6.12444317,2030.3,2030.2,5.03428771]
[1746718143493,6.12444317,2030.9,2030.8,4.92408216]
[1746718143684,10.538,2031.1,2030.8,4.92408216]
[1746718143889,10.538,2031.1,2030.9,4.92376251]
[1746718144131,6.12444317,2031.4,2031.1,4.92327454]
[1746718144295,11.04715722,2031.4,2030.9,4.92389314]
[1746718144493,11.04715722,2031.4,2030.2,5.03428771]
[1746718144494,6.12444317,2031.0,2030.2,5.03428771]
[1746718144721,10.538,2030.9,2030.4,4.9251379]
[1746718144925,10.538,2030.9,2030.8,4.92416781]
[1746718145086,7.70779855,2030.9,2030.8,4.92416781]
[1746718145430,7.70779855,2030.9,2030.4,4.92500956]
[1746718145738,6.12444317,2030.8,2029.5,4.927322]
[1746718145884,6.12444317,2030.8,2029.6,4.92707922]
[1746718146324,6.12444317,2030.8,2030.7,4.9244103]
[1746718146489,6.12444317,2030.8,2030.5,4.92477108]
[1746718146685,6.12444317,2030.8,2030.7,4.9244103]
[1746718147317,6.12444317,2031.2,2031.1,4.9234405]
[1746718147487,17.741,2031.7,2031.5,4.92247108]
[1746718147702,6.12444317,2031.8,2031.5,4.92247108]
[1746718147913,6.12444317,2031.8,2030.6,4.92461647]
[1746718147914,6.12444317,2031.8,2030.8,4.92395417]
[1746718148114,6.12444317,2031.4,2030.1,10.538]
[1746718148313,6.12444317,2031.0,2030.2,0.0492293]
[1746718148520,6.12444317,2030.6,2030.0,4.92610399]
[1746718148716,0.37004863,2032.2,2030.3,4.9252594]
[1746718148916,6.12444317,2031.1,2031.0,10.0]
[1746718149244,4.92396133,2030.9,2030.4,4.92501398]
[1746718149554,6.12444317,2030.6,2030.4,4.92512263]
[1746718149848,6.12444317,2030.6,2029.6,0.04924973]
[1746718150147,6.12444317,2030.6,2030.0,4.92609767]
[1746718150356,6.12444317,2030.6,2029.1,4.92829333]
[1746718150357,6.12444317,2030.2,2029.1,4.92829333]
[1746718150535,10.537,2030.2,2030.1,4.92586572]
[1746718150846,10.537,2030.2,2029.5,4.9271102]
[1746718150847,10.537,2030.5,2029.7,4.92683647]
[1746718151048,10.537,2030.5,2029.4,4.92755907]
[1746718151222,0.7694,2029.4,2028.6,5.14491666]
[1746718151421,6.89384317,2028.7,2028.6,5.14491666]
[1746718151662,11.82310821,2028.7,2028.6,5.14491666]
[1746718151948,11.82310821,2028.7,2027.9,6.9221456]
[1746718151949,6.89384317,2028.7,2027.9,6.9221456]
[1746718152260,6.65342605,2028.0,2027.9,6.9221456]
[1746718152551,1.72245959,2028.0,2027.9,6.9221456]
[1746718152735,9.65342605,2028.0,2027.7,7.86607455]
[1746718153042,4.93218249,2027.5,2027.4,4.2810457]
[1746718153211,14.83432566,2027.5,2027.4,0.66144288]
[1746718153405,4.93291239,2027.2,2027.1,11.15326382]
[1746718153638,15.47191239,2027.2,2026.5,4.93456366]